bitfinex/quotes_BTCUSD_20240815
["timestamp","ask_amount","ask_price","bid_price","bid_amount"]
[1723748816619,0.18210601,57793.0,57791.0,0.0653]
[1723748816856,0.00907501,57793.0,57791.0,0.0653]
[1723748817309,0.519102,57792.0,57791.0,0.009]
[1723748817540,0.00907501,57793.0,57791.0,0.009]
[1723748817541,0.18210601,57793.0,57791.0,0.009]
[1723748817780,0.00907501,57793.0,57791.0,0.009]
[1723748818046,0.00907501,57793.0,57792.0,1.7511141]
[1723748818281,0.00907501,57793.0,57792.0,2.19686054]
[1723748819473,0.51466362,57812.0,57806.0,0.662076]
[1723748819719,0.51466362,57812.0,57794.0,0.346055]
[1723748819720,0.345966,57809.0,57800.0,0.0625]
[1723748819960,0.345954,57812.0,57800.0,0.0625]
[1723748820194,0.345934,57815.0,57800.0,0.0625]
[1723748820195,0.172977,57811.0,57806.0,0.172992]
[1723748820428,0.172969,57814.0,57806.0,0.172992]
[1723748820677,0.172976,57812.0,57806.0,0.172992]
[1723748820922,0.172971,57813.0,57806.0,0.186992]
[1723748821153,0.345938,57814.0,57806.0,0.172992]
[1723748821154,0.172974,57812.0,57806.0,0.172992]
[1723748821379,0.345938,57814.0,57800.0,0.18275874]
[1723748821600,0.345954,57812.0,57800.0,0.18275874]
[1723748821814,0.172993,57806.0,57800.0,0.34576774]
[1723748822022,0.345973,57808.0,57806.0,0.014]
[1723748822023,0.18206401,57807.0,57806.0,0.014]
[1723748822235,0.87402001,57807.0,57806.0,0.014]
[1723748822471,0.87402001,57807.0,57806.0,0.028]
[1723748822702,1.92042975,57807.0,57806.0,0.014]
[1723748822941,2.00252975,57807.0,57806.0,0.014]
[1723748823154,2.02552975,57807.0,57806.0,0.014]
[1723748823369,2.02552975,57807.0,57800.0,0.014]
[1723748823370,2.37150775,57807.0,57800.0,0.014]
[1723748823600,1.26682627,57801.0,57800.0,0.014]
[1723748823810,1.95009481,57801.0,57800.0,0.014]
[1723748824060,0.519228,57778.0,57777.0,0.000822]
[1723748824270,0.346056,57794.0,57777.0,0.000822]
[1723748824271,0.0753,57784.0,57777.0,0.000822]
[1723748824540,0.346129,57782.0,57777.0,0.000822]
[1723748824769,0.173076,57778.0,57777.0,0.000822]
[1723748824992,0.173075,57779.0,57777.0,0.000822]
[1723748825231,0.248376,57778.0,57777.0,0.000822]
[1723748825450,0.94068,57778.0,57777.0,0.014822]
[1723748826744,0.94068,57778.0,57777.0,0.013822]
[1723748826978,0.173076,57778.0,57777.0,0.010822]
[1723748827212,0.001,57782.0,57777.0,0.09659927]
[1723748827432,0.001,57782.0,57781.0,0.519201]
[1723748827647,0.173051,57787.0,57778.0,0.428151]
[1723748827885,0.0809,57795.0,57778.0,0.428151]
[1723748827886,0.173047,57788.0,57778.0,0.428151]
[1723748828121,0.173043,57789.0,57783.0,0.17306]
[1723748828389,0.173046,57788.0,57783.0,0.17306]
[1723748828613,0.173046,57788.0,57782.0,0.173062]
[1723748828850,0.17155454,57794.0,57781.0,0.01]
[1723748829096,0.0809,57795.0,57781.0,0.01]
[1723748829097,0.86532,57782.0,57781.0,0.01]
[1723748829336,0.519192,57782.0,57781.0,0.01]
[1723748829629,0.0752,57784.0,57781.0,0.01]
[1723748829874,0.346128,57782.0,57777.0,0.000822]
[1723748830153,0.519228,57778.0,57777.0,0.000822]
[1723748830890,0.86538,57778.0,57777.0,0.000822]
[1723748831891,1.211532,57778.0,57777.0,0.000822]
[1723748832425,0.86538,57778.0,57777.0,0.000822]
[1723748832676,0.86538,57778.0,57777.0,0.006822]
[1723748832930,0.86538,57778.0,57777.0,0.000822]
[1723748833182,0.86538,57778.0,57777.0,0.010822]
[1723748833425,0.86638,57778.0,57777.0,0.018822]
[1723748834262,1.69384196,57778.0,57777.0,0.018822]
[1723748834419,1.95421669,57778.0,57777.0,0.018822]
[1723748834632,1.93263854,57778.0,57777.0,0.018822]
[1723748835059,2.28908055,57778.0,57777.0,0.018822]
[1723748835271,2.35408055,57778.0,57777.0,0.018822]
[1723748835735,2.35408055,57778.0,57777.0,0.008822]
[1723748835966,2.52563509,57778.0,57777.0,0.009822]
[1723748836186,2.52463509,57778.0,57777.0,0.000822]
[1723748836403,2.52463509,57778.0,57777.0,0.002822]
[1723748836404,2.53863509,57778.0,57777.0,0.002822]
[1723748836845,2.53863509,57778.0,57777.0,0.001822]
[1723748837069,2.52463509,57778.0,57777.0,0.001822]
[1723748837294,2.53863509,57778.0,57777.0,0.002822]
[1723748837502,2.36708055,57778.0,57777.0,0.002822]
[1723748838572,2.02092855,57778.0,57777.0,0.002822]
[1723748839880,1.211553,57777.0,57776.0,0.0499]
[1723748840089,0.17313,57760.0,57749.0,0.479524]
[1723748840303,1.38346454,57760.0,57749.0,0.479524]
[1723748840532,1.72972454,57760.0,57749.0,0.000824]
[1723748840738,1.93372454,57760.0,57749.0,0.000824]
[1723748841369,2.27998454,57760.0,57749.0,0.000824]
[1723748841577,2.10527908,57760.0,57749.0,0.000824]
[1723748842056,2.45153908,57760.0,57749.0,0.000824]
[1723748842502,2.10527908,57760.0,57749.0,0.000824]
[1723748842710,2.10627908,57760.0,57759.0,0.01003041]
[1723748842918,2.10527908,57760.0,57759.0,0.00103041]
[1723748843366,1.93372454,57760.0,57759.0,0.00403041]
[1723748844050,1.56446454,57760.0,57759.0,0.00403041]
[1723748844292,1.57495947,57760.0,57759.0,0.00403041]
[1723748845466,1.47495947,57760.0,57759.0,0.00403041]
[1723748845683,0.51939,57760.0,57759.0,0.00403041]
[1723748845899,0.01056933,57768.0,57760.0,0.0809]
[1723748846123,0.173107,57768.0,57763.0,0.0634]
[1723748846328,0.71734589,57776.0,57763.0,0.0634]
[1723748846542,0.173118,57764.0,57763.0,0.0634]
[1723748846754,0.72765688,57776.0,57763.0,0.0634]
[1723748846755,0.21299326,57776.0,57763.0,0.0634]
[1723748846988,0.0778,57786.0,57771.0,0.173095]
[1723748847203,0.0778,57786.0,57768.0,0.0809]
[1723748847204,0.173078,57778.0,57772.0,0.173093]
[1723748847420,0.17155454,57785.0,57769.0,0.173102]
[1723748847661,0.17155454,57785.0,57768.0,0.254005]
[1723748847662,0.173089,57774.0,57768.0,0.254005]
[1723748847880,0.173067,57781.0,57775.0,0.173083]
[1723748848099,0.173071,57780.0,57770.0,0.0664]
[1723748848375,0.173077,57778.0,57772.0,0.173092]
[1723748848584,0.173077,57778.0,57771.0,0.0802]
[1723748848585,0.346143,57780.0,57771.0,0.253296]
[1723748848802,0.173082,57776.0,57771.0,0.253296]
[1723748849010,0.173082,57776.0,57774.0,0.173087]
[1723748849011,0.004,57776.0,57774.0,0.173087]
[1723748849214,0.346146,57780.0,57771.0,0.0802]
[1723748849421,0.173082,57776.0,57771.0,0.0802]
[1723748849651,0.173082,57776.0,57772.0,0.005]
[1723748849866,0.006,57776.0,57771.0,0.0802]
[1723748850080,0.007,57776.0,57772.0,0.173093]
[1723748850288,0.001,57776.0,57772.0,0.173093]
[1723748850495,0.001,57776.0,57773.0,0.173091]
[1723748850706,0.001,57776.0,57771.0,0.0822]
[1723748850707,0.002,57776.0,57771.0,0.0822]
[1723748850932,0.173087,57775.0,57771.0,0.0822]
[1723748851148,0.002,57776.0,57771.0,0.0822]
[1723748851364,0.173094,57772.0,57771.0,0.0822]
[1723748851569,0.002,57776.0,57771.0,0.0822]
[1723748851793,0.002,57776.0,57772.0,0.173093]
[1723748852021,0.002,57776.0,57771.0,0.0822]
[1723748852022,0.002,57776.0,57775.0,0.173085]
[1723748852257,0.001,57776.0,57775.0,0.83190954]
[1723748852470,0.001,57776.0,57775.0,0.93737076]
[1723748852471,0.003,57776.0,57775.0,0.93737076]
[1723748852689,0.003,57776.0,57775.0,0.93537076]
[1723748852690,0.002,57776.0,57775.0,0.93537076]
[1723748852901,0.51466362,57793.0,57775.0,0.93537076]
[1723748853114,0.34692311,57800.0,57775.0,0.93537076]
[1723748853115,0.51466362,57792.0,57789.0,0.0612]
[1723748853324,0.00090311,57800.0,57789.0,0.0612]
[1723748853534,0.346027,57799.0,57789.0,0.0612]
[1723748853961,0.00090311,57800.0,57789.0,0.0612]
[1723748854160,0.346029,57799.0,57789.0,0.0612]
[1723748854367,0.173017,57798.0,57789.0,0.0612]
[1723748854578,0.00090311,57800.0,57789.0,0.0612]
[1723748854839,0.173016,57798.0,57789.0,0.0612]
[1723748855258,0.35505701,57807.0,57797.0,0.08577727]
[1723748855259,0.00907501,57807.0,57797.0,0.08577727]
[1723748855482,0.00907501,57807.0,57790.0,0.33723181]
[1723748855483,0.00907501,57807.0,57806.0,0.660076]
[1723748855695,0.00907501,57807.0,57806.0,0.314092]
[1723748856373,0.00907501,57807.0,57806.0,0.1411]
[1723748856842,0.00907501,57807.0,57806.0,0.1551]
[1723748857052,0.01007501,57807.0,57806.0,0.327092]
[1723748857284,0.01007501,57807.0,57806.0,0.341092]
[1723748857516,0.01007501,57807.0,57806.0,0.1681]
[1723748858713,0.00907501,57807.0,57801.0,0.075]
[1723748858955,0.00907501,57807.0,57806.0,0.014]
[1723748859215,0.00907501,57807.0,57806.0,0.186992]
[1723748859448,0.00907501,57807.0,57806.0,0.012]
[1723748859449,0.01007501,57807.0,57806.0,0.012]
[1723748859690,0.01007501,57807.0,57806.0,0.607976]
[1723748859691,0.00907501,57807.0,57806.0,0.607976]
[1723748859926,0.00907501,57807.0,57806.0,0.93996]
[1723748860158,0.01007501,57807.0,57806.0,0.93996]
[1723748860429,0.01007501,57807.0,57806.0,0.672976]
[1723748861075,0.01007501,57807.0,57806.0,1.01896]
[1723748861314,0.01007501,57807.0,57806.0,0.68349348]
[1723748861519,0.01007501,57807.0,57806.0,1.02947748]
[1723748861731,0.00907501,57807.0,57806.0,0.68349348]
[1723748861939,0.01007501,57807.0,57806.0,0.69449348]
[1723748862149,0.01007501,57807.0,57806.0,0.68049348]
[1723748862361,0.01007501,57807.0,57806.0,0.69449348]
[1723748866013,0.01007501,57807.0,57806.0,0.17551748]
[1723748866234,0.18306401,57807.0,57806.0,0.025]
[1723748866460,0.01007501,57807.0,57806.0,0.025]
[1723748866913,0.18306401,57807.0,57806.0,0.025]
[1723748867120,0.01007501,57807.0,57806.0,0.025]
[1723748868439,0.01007501,57807.0,57806.0,0.277892]
[1723748868655,0.01007501,57807.0,57806.0,0.96986]
[1723748869302,0.01007501,57807.0,57806.0,1.55359854]
[1723748869537,0.01007501,57807.0,57806.0,1.55559854]
[1723748869749,0.00907501,57817.0,57816.0,1.008912]
[1723748870201,0.00907501,57817.0,57816.0,1.62639154]
[1723748870646,0.0002,57819.0,57816.0,1.62639154]
[1723748870647,0.0002,57819.0,57818.0,1.212695]
[1723748870649,0.00907501,57829.0,57818.0,1.212695]
[1723748870650,0.00907501,57829.0,57828.0,0.518779]
[1723748870903,0.00907501,57829.0,57828.0,1.75163954]
[1723748871362,0.00907501,57829.0,57828.0,1.85163954]
[1723748871595,0.00907501,57829.0,57828.0,0.93443354]
[1723748872071,0.00907501,57829.0,57828.0,1.28028654]
[1723748872536,0.00907501,57829.0,57828.0,1.87963954]
[1723748872758,0.00907501,57829.0,57828.0,1.51978654]
[1723748873931,0.00907501,57829.0,57828.0,1.8758889]
[1723748874140,0.00907501,57829.0,57828.0,1.5440359]
[1723748874408,0.00907501,57829.0,57828.0,1.02662836]
[1723748874614,0.00907501,57829.0,57828.0,0.80112836]
[1723748875045,0.00907501,57829.0,57828.0,1.14698136]
[1723748875250,0.00907501,57829.0,57828.0,1.13298136]
[1723748875459,0.00907501,57829.0,57828.0,1.8618889]
[1723748875670,0.00907501,57829.0,57828.0,1.8758889]
[1723748876087,0.00907501,57829.0,57828.0,1.8918889]
[1723748876517,0.00907501,57833.0,57832.0,1.350901]
[1723748876733,0.00907501,57836.0,57835.0,0.366]
[1723748876939,0.00907501,57836.0,57835.0,0.63755454]
[1723748877366,0.00907501,57836.0,57835.0,0.66055454]
[1723748877794,0.00907501,57836.0,57835.0,0.65855454]
[1723748879095,0.00907501,57836.0,57835.0,0.67255454]
[1723748879311,0.00907501,57836.0,57835.0,0.64955454]
[1723748879952,0.00907501,57836.0,57835.0,0.32405454]
[1723748880169,0.00907501,57836.0,57835.0,0.33805454]
[1723748880376,0.00907501,57836.0,57835.0,0.51095954]
[1723748880633,0.00907501,57836.0,57835.0,1.19887249]
[1723748880858,0.00907501,57836.0,57835.0,0.83906149]
[1723748881073,0.00907501,57836.0,57835.0,0.02429095]
[1723748881289,0.18197701,57836.0,57835.0,0.028]
[1723748881502,0.18197701,57836.0,57835.0,0.014]
[1723748881950,0.95368701,57836.0,57835.0,0.028]
[1723748882172,1.53424655,57836.0,57835.0,0.014]
[1723748882404,1.53424655,57836.0,57818.0,0.07131473]
[1723748882405,0.32392955,57836.0,57818.0,0.07131473]
[1723748882612,0.67108201,57836.0,57835.0,0.028]
[1723748882816,1.36269201,57836.0,57835.0,0.014]
[1723748883034,0.172927,57828.0,57818.0,0.345907]
[1723748883257,0.345842,57830.0,57818.0,0.172955]
[1723748885070,0.172971,57813.0,57807.0,0.172988]
[1723748885282,0.345956,57811.0,57803.0,0.00020826]
[1723748885492,0.0778,57815.0,57803.0,0.18366463]
[1723748885717,0.172978,57811.0,57805.0,0.172994]
[1723748886148,0.172972,57813.0,57807.0,0.172988]
[1723748886150,0.172974,57812.0,57807.0,0.002]
[1723748886346,0.0778,57815.0,57807.0,0.002]
[1723748886347,0.24935454,57815.0,57807.0,0.002]
[1723748886704,0.172981,57810.0,57807.0,0.002]
[1723748886929,0.172986,57808.0,57807.0,0.002]
[1723748887149,0.518958,57808.0,57807.0,0.002]
[1723748887382,0.172985,57809.0,57807.0,0.003]
[1723748887797,0.172985,57809.0,57807.0,0.001]
[1723748888004,0.345957,57811.0,57807.0,0.001]
[1723748888218,0.172984,57809.0,57807.0,0.001]
[1723748888432,0.172979,57811.0,57807.0,0.001]
[1723748888645,0.0833,57820.0,57806.0,0.345984]
[1723748888853,0.172969,57814.0,57809.0,0.172982]
[1723748889537,0.17155454,57819.0,57804.0,0.345993]
[1723748889782,0.345939,57814.0,57807.0,0.003]
[1723748889989,0.345932,57815.0,57807.0,0.175989]
[1723748889990,0.172977,57812.0,57807.0,0.175989]
[1723748890240,0.172977,57812.0,57807.0,0.172989]
[1723748890451,0.346937,57814.0,57805.0,0.345988]
[1723748890680,0.172974,57812.0,57807.0,0.179989]
[1723748890940,0.172986,57808.0,57807.0,0.007]
[1723748891333,0.94083,57808.0,57807.0,0.007]
[1723748891338,1.286802,57808.0,57807.0,0.012]
[1723748891569,0.94073556,57808.0,57807.0,0.012]
[1723748891794,0.86499,57804.0,57800.0,0.000821]
[1723748892014,1.45844054,57804.0,57800.0,0.000821]
[1723748892441,1.80443654,57804.0,57800.0,0.000821]
[1723748893114,1.80643654,57804.0,57803.0,0.00120826]
[1723748893330,1.46044054,57804.0,57803.0,0.00120826]
[1723748893548,1.45844054,57804.0,57803.0,0.00020826]
[1723748894067,1.46044054,57804.0,57803.0,0.00120826]
[1723748894491,1.46144054,57804.0,57803.0,0.00120826]
[1723748894699,1.47085183,57804.0,57803.0,0.00120826]
[1723748895149,1.47185183,57804.0,57803.0,0.00120826]
[1723748895364,1.46885183,57804.0,57803.0,0.00020826]
[1723748895625,1.45844054,57804.0,57803.0,0.00020826]
[1723748895859,1.45944054,57804.0,57803.0,0.00020826]
[1723748896068,1.46344054,57804.0,57803.0,0.00120826]
[1723748896309,0.77144854,57804.0,57803.0,0.00120826]
[1723748896552,0.77144854,57804.0,57803.0,0.17420926]
[1723748896553,0.005,57804.0,57803.0,0.17420926]
[1723748896782,0.001,57804.0,57803.0,0.00020826]
[1723748897028,0.001,57804.0,57803.0,0.94461326]
[1723748897261,0.0828,57816.0,57803.0,0.42561026]
[1723748897504,0.345899,57821.0,57807.0,0.08577727]
[1723748897751,0.17296,57817.0,57812.0,0.172973]
[1723748898536,0.17296,57817.0,57811.0,0.172976]
[1723748898771,0.172966,57815.0,57810.0,0.1833046]
[1723748899231,0.172966,57815.0,57807.0,0.43175527]
[1723748899232,0.172964,57816.0,57809.0,0.345964]
[1723748899676,0.172964,57816.0,57811.0,0.172975]
[1723748899899,0.172966,57815.0,57811.0,0.002]
[1723748900148,0.172962,57816.0,57811.0,0.174976]
[1723748900364,0.172962,57816.0,57812.0,0.001]
[1723748900591,0.346895,57821.0,57812.0,0.001]
[1723748900807,0.428662,57827.0,57813.0,0.17297]
[1723748901038,0.34591,57819.0,57811.0,0.007]
[1723748901275,0.172953,57819.0,57814.0,0.172967]
[1723748901771,0.428662,57827.0,57814.0,0.172967]
[1723748901772,0.172915,57832.0,57827.0,0.172927]
[1723748902009,0.0828,57835.0,57829.0,0.172922]
[1723748902247,0.00907501,57836.0,57832.0,0.345827]
[1723748902501,0.00907501,57836.0,57835.0,0.172905]
[1723748902746,0.00907501,57836.0,57827.0,0.01022035]
[1723748902992,0.00907501,57836.0,57833.0,0.17291]
[1723748903237,0.003,57832.0,57829.0,0.345846]
[1723748903716,0.18197801,57836.0,57831.0,0.172916]
[1723748904147,0.00907501,57836.0,57832.0,0.172913]
[1723748904379,0.00907501,57836.0,57835.0,0.172905]
[1723748904854,0.00907501,57836.0,57828.0,0.0622]
[1723748905074,0.00907501,57836.0,57831.0,0.01]
[1723748905334,0.00907501,57836.0,57830.0,0.345839]
[1723748905335,0.00907501,57836.0,57832.0,0.345828]
[1723748905554,0.00907501,57836.0,57828.0,0.0622]
[1723748905768,0.00907501,57836.0,57835.0,0.182905]
[1723748905978,0.00907501,57836.0,57828.0,0.0622]
[1723748906201,0.00907501,57836.0,57829.0,0.011]
[1723748906419,0.00907501,57836.0,57835.0,0.172905]
[1723748906904,0.00907501,57836.0,57835.0,1.12448154]
[1723748907123,0.00907501,57836.0,57835.0,1.53249254]
[1723748907340,1e-08,57836.0,57835.0,1.52349254]
[1723748907553,1e-08,57836.0,57835.0,1.87130354]
[1723748907770,1e-08,57836.0,57835.0,1.98030354]
[1723748907992,1e-08,57836.0,57835.0,1.99430354]
[1723748908446,0.0002,57839.0,57838.0,0.174896]
[1723748908666,0.0002,57839.0,57838.0,1.36887065]
[1723748908895,0.0002,57839.0,57838.0,2.08345665]
[1723748909129,0.51466362,57855.0,57850.0,1.210023]
[1723748909347,0.51466362,57855.0,57850.0,1.27745654]
[1723748909600,0.51466362,57855.0,57850.0,0.0622]
[1723748909813,0.08577727,57864.0,57850.0,0.23506]
[1723748909814,0.0128622,57851.0,57850.0,0.23506]
[1723748910031,0.0128622,57851.0,57850.0,0.0622]
[1723748910247,0.00907501,57851.0,57850.0,0.0622]
[1723748910474,0.01286311,57851.0,57846.0,0.01050547]
[1723748910912,0.01286311,57851.0,57846.0,0.345743]
[1723748911346,0.01286311,57851.0,57850.0,0.17286]
[1723748912009,0.00907501,57851.0,57850.0,0.01]
[1723748912224,0.00907501,57851.0,57850.0,0.69013554]
[1723748912437,0.00907501,57851.0,57850.0,0.525581]
[1723748912645,0.00907501,57851.0,57850.0,0.537581]
[1723748912861,0.00907501,57851.0,57850.0,0.530581]
[1723748913141,0.00907501,57851.0,57850.0,0.18486]
[1723748913370,0.00907501,57851.0,57850.0,0.012]
[1723748913628,1.04870119,57851.0,57850.0,0.012]
[1723748913844,1.47721619,57851.0,57850.0,0.025]
[1723748914064,0.01285965,57851.0,57850.0,0.025]
[1723748914503,0.01285965,57851.0,57850.0,0.013]
[1723748914717,0.53143165,57851.0,57850.0,0.027]
[1723748914929,0.87714665,57851.0,57850.0,0.013]
[1723748915143,1.94939828,57851.0,57850.0,0.013]
[1723748915365,0.0609,57836.0,57815.0,0.0638]
[1723748915586,0.0775,57829.0,57820.0,0.51466362]
[1723748915833,0.17155454,57828.0,57808.0,0.34679]
[1723748916058,0.17155454,57828.0,57813.0,0.17297]
[1723748916285,0.17155454,57828.0,57808.0,0.079121]
[1723748916286,0.17298,57811.0,57808.0,0.000821]
[1723748916507,0.172983,57809.0,57808.0,0.000821]
[1723748916730,0.428843,57813.0,57808.0,0.000821]
[1723748916985,0.172983,57809.0,57808.0,0.000821]
[1723748917215,0.518949,57809.0,57808.0,0.000821]
[1723748917449,0.864915,57809.0,57808.0,0.000821]
[1723748917673,1.03646954,57809.0,57808.0,0.000821]
[1723748917888,0.518949,57809.0,57808.0,0.000821]
[1723748918105,0.864915,57809.0,57808.0,0.008821]
[1723748918325,0.518949,57809.0,57808.0,0.000821]
[1723748918540,0.172983,57809.0,57808.0,0.000821]
[1723748918752,0.520949,57809.0,57808.0,0.000821]
[1723748918971,0.172983,57809.0,57808.0,0.000821]
[1723748919424,0.172983,57809.0,57808.0,0.002821]
[1723748920112,0.345919,57817.0,57808.0,0.002821]
[1723748920337,0.001,57809.0,57808.0,0.002821]
[1723748920547,0.001,57809.0,57808.0,0.66955627]
[1723748920805,0.00079189,57809.0,57808.0,0.42358427]
[1723748921019,0.00079189,57809.0,57808.0,0.162821]
[1723748921241,0.86570689,57809.0,57808.0,0.000821]
[1723748921452,0.86570689,57809.0,57808.0,0.001821]
[1723748921453,0.51974089,57809.0,57808.0,0.001821]
[1723748921879,0.518949,57809.0,57808.0,0.000821]
[1723748922095,0.172983,57809.0,57808.0,0.009821]
[1723748922312,0.172983,57809.0,57808.0,0.001821]
[1723748922529,0.079,57811.0,57808.0,0.001821]
[1723748922740,0.1408421,57851.0,57809.0,0.08577727]
[1723748922741,0.345931,57815.0,57809.0,0.08577727]
[1723748922955,0.083,57818.0,57808.0,0.176806]
[1723748922956,0.172968,57814.0,57808.0,0.176806]
[1723748923165,0.345932,57815.0,57808.0,0.003821]
[1723748923379,0.083,57818.0,57811.0,0.172976]
[1723748923596,0.17295,57820.0,57814.0,0.172965]
[1723748923839,0.345883,57823.0,57808.0,0.08859827]
[1723748924051,0.172951,57820.0,57808.0,0.09205742]
[1723748924265,0.083,57825.0,57814.0,0.08577727]
[1723748924499,0.1465,57832.0,57815.0,0.14695878]
[1723748924757,0.17293,57827.0,57815.0,0.14695878]
[1723748925021,0.17155454,57830.0,57817.0,0.172958]
[1723748925022,0.172941,57823.0,57817.0,0.172958]
[1723748925250,0.17155454,57830.0,57815.0,0.1435]
[1723748925251,0.172951,57820.0,57815.0,0.1435]
[1723748925484,0.17155454,57819.0,57808.0,0.003821]
[1723748925721,0.345953,57812.0,57808.0,0.003821]
[1723748925935,0.172981,57810.0,57808.0,0.000821]
[1723748926144,0.518949,57809.0,57808.0,0.000821]
[1723748926577,0.172983,57809.0,57808.0,0.000821]
[1723748926795,0.17298,57810.0,57808.0,0.000821]
[1723748927035,0.172983,57809.0,57808.0,0.002821]
[1723748927248,0.17155454,57814.0,57808.0,0.002821]
[1723748927485,0.172978,57811.0,57808.0,0.002821]
[1723748927697,0.172983,57809.0,57808.0,0.002821]
[1723748928114,0.518949,57809.0,57808.0,0.002821]
[1723748928363,0.518949,57809.0,57808.0,0.008821]
[1723748928571,0.864915,57809.0,57808.0,0.000821]
[1723748928809,0.518949,57809.0,57808.0,0.003821]
[1723748929014,0.518949,57809.0,57808.0,0.011821]
[1723748929221,0.518949,57809.0,57808.0,0.000821]
[1723748929436,0.518949,57809.0,57808.0,0.006821]
[1723748929669,0.17298,57810.0,57808.0,0.009821]
[1723748929880,0.172967,57815.0,57809.0,0.08577727]
[1723748930121,0.172967,57815.0,57810.0,0.172979]
[1723748930336,0.864915,57809.0,57808.0,0.006821]
[1723748930550,0.864915,57809.0,57808.0,0.011821]
[1723748930551,1.62883554,57809.0,57808.0,0.011821]
[1723748930777,1.62883554,57809.0,57808.0,0.005821]
[1723748931007,2.13768509,57809.0,57808.0,0.005821]
[1723748931224,2.16068509,57809.0,57808.0,0.013821]
[1723748931435,2.50665109,57809.0,57808.0,0.005821]
[1723748931641,2.16068509,57809.0,57808.0,0.000821]
[1723748931859,1.99780154,57809.0,57808.0,0.001821]
[1723748932070,2.00833407,57809.0,57808.0,0.000821]
[1723748932358,1.211049,57801.0,57800.0,1.000821]
[1723748932580,1.98379481,57801.0,57800.0,1.000821]
[1723748932817,2.42980881,57801.0,57800.0,1.000821]
[1723748933034,2.43980881,57801.0,57800.0,1.000821]
[1723748933250,0.94418,57778.0,57777.0,0.000821]
[1723748933466,0.76958254,57778.0,57777.0,0.000821]
[1723748933673,1.11573454,57778.0,57777.0,0.000821]
[1723748935423,1.11573454,57778.0,57777.0,0.001821]
[1723748935424,1.11673454,57778.0,57777.0,0.001821]
[1723748935634,1.11673454,57778.0,57777.0,0.002821]
[1723748935851,1.93448799,57778.0,57777.0,0.001821]
[1723748936097,1.93348799,57778.0,57777.0,0.000821]
[1723748936312,2.28063999,57778.0,57777.0,0.000821]
[1723748936551,1.73793454,57778.0,57777.0,0.000821]
[1723748936767,1.73693454,57778.0,57777.0,0.000821]
[1723748937207,1.73793454,57778.0,57777.0,0.001821]
[1723748937437,1.220228,57778.0,57777.0,0.001821]
[1723748937862,1.56638,57778.0,57777.0,0.001821]
[1723748938502,1.220228,57778.0,57777.0,0.001821]
[1723748938932,1.220228,57778.0,57777.0,0.002821]
[1723748939142,0.86538,57778.0,57777.0,0.001821]
[1723748939366,0.86638,57778.0,57777.0,0.002821]
[1723748939781,0.86638,57778.0,57777.0,0.001821]
[1723748939782,0.519228,57778.0,57777.0,0.001821]
[1723748940207,0.95032662,57778.0,57777.0,0.001821]
[1723748940443,0.520228,57778.0,57777.0,0.001821]
[1723748940670,1.21923454,57778.0,57777.0,0.001821]
[1723748940893,1.65028654,57778.0,57777.0,0.001821]
[1723748941106,1.99643854,57778.0,57777.0,0.001821]
[1723748941316,2.51414508,57778.0,57777.0,0.001821]
[1723748941757,2.51414508,57778.0,57777.0,0.000821]
[1723748941758,2.16699308,57778.0,57777.0,0.000821]
[1723748941964,2.17492808,57778.0,57777.0,0.001821]
[1723748942180,1.63422154,57778.0,57777.0,0.001821]
[1723748942413,1.62728654,57778.0,57777.0,0.001821]
[1723748942620,2.34159054,57778.0,57777.0,1e-06]
[1723748942829,2.51414508,57778.0,57777.0,0.001001]
[1723748943041,2.51414508,57778.0,57777.0,0.002001]
[1723748943255,2.51314508,57778.0,57777.0,0.001001]
[1723748943475,2.51314508,57778.0,57777.0,1e-06]
[1723748943740,1.904034,57772.0,57771.0,0.000822]
[1723748943953,2.37906581,57772.0,57771.0,0.000822]
[1723748946404,0.9649302,57736.0,57735.0,0.000825]
[1723748946615,1.7807382,57736.0,57735.0,0.000825]
[1723748947041,1.9965837,57736.0,57735.0,0.000825]
[1723748947251,1.95229274,57736.0,57735.0,0.000825]
[1723748948977,1.96529274,57736.0,57735.0,0.001825]
[1723748949405,1.97929274,57736.0,57735.0,0.002825]
[1723748949626,1.49256854,57736.0,57735.0,0.002825]
[1723748949842,1.41096854,57736.0,57735.0,0.002825]
[1723748950289,1.41096854,57736.0,57722.0,0.000825]
[1723748950290,0.769856,57732.0,57722.0,0.000825]
[1723748950509,0.36505454,57736.0,57722.0,0.000825]
[1723748950510,1.38424154,57723.0,57722.0,0.000825]
[1723748950939,1.03775954,57723.0,57722.0,0.000825]
[1723748951501,1.03775954,57723.0,57713.0,0.00822]
[1723748951502,0.519804,57714.0,57713.0,0.00822]
[1723748951720,0.17155454,57723.0,57713.0,0.00822]
[1723748952181,0.86634,57714.0,57713.0,0.00822]
[1723748952400,1.83106654,57714.0,57713.0,0.00822]
[1723748952615,1.93106654,57714.0,57713.0,0.00822]
[1723748953065,2.28760254,57714.0,57713.0,0.00822]
[1723748953290,2.28760254,57714.0,57703.0,0.001771]
[1723748953291,0.252898,57704.0,57703.0,0.001771]
[1723748953517,2.01961381,57704.0,57703.0,0.001771]
[1723748953734,2.02961381,57704.0,57703.0,0.001771]
[1723748953955,2.02961381,57704.0,57691.0,0.0002]
[1723748953956,1.302728,57702.0,57691.0,0.0002]
[1723748954183,1.64908254,57702.0,57691.0,0.0002]
[1723748955050,0.87658,57698.0,57691.0,0.0002]
[1723748955309,1.57314381,57698.0,57691.0,0.0002]
[1723748955566,2.19133035,57698.0,57691.0,0.0002]
[1723748955821,2.54796235,57698.0,57691.0,0.0002]
[1723748956071,2.54796235,57698.0,57663.0,0.51466362]
[1723748956072,0.779792,57682.0,57663.0,0.51466362]
[1723748956334,1.64480254,57682.0,57663.0,0.51466362]
[1723748956578,2.00338508,57682.0,57659.0,0.0778]
[1723748956799,2.00338508,57682.0,57655.0,0.52288362]
[1723748956800,0.86688,57678.0,57655.0,0.00822]
[1723748957046,2.09831581,57678.0,57655.0,0.00822]